lending/lending_fUSD_20240809
["ID","MTS","AMOUNT","RATE_DAILY","PERIOD"]
[334522907,1723173074150,-913.05,0.00024283,5]
[334522908,1723173074162,-500.0,0.00024283,5]
[334522909,1723173074171,-1605.27,0.00024283,5]
[334522910,1723173074181,-1605.27,0.00024283,5]
[334522911,1723173074191,-500.0,0.00024283,5]
[334522912,1723173074204,-1771.96,0.00024283,5]
[334522913,1723173074216,-2058.38,0.00024283,5]
[334522914,1723173074226,-2256.92,0.00024283,5]
[334522915,1723173074237,-2256.92,0.00024283,5]
[334522916,1723173074248,-500.0,0.00024283,5]
[334522917,1723173074260,-500.0,0.00024283,5]
[334522918,1723173074272,-1446.58,0.00024283,5]
[334522919,1723173074284,-1010.29,0.00024283,5]
[334522920,1723173074294,-1010.29,0.00024283,5]
[334522921,1723173074304,-738.8,0.00024283,5]
[334522922,1723173074315,-500.0,0.00024283,5]
[334522923,1723173074327,-5908.06,0.00024283,5]
[334522924,1723173074337,-2016.95,0.00024283,5]
[334522925,1723173074347,-2283.75,0.00024283,5]
[334522926,1723173074359,-500.0,0.00024283,5]
[334522927,1723173074369,-555.7,0.00024283,5]
[334522928,1723173074379,-2544.44,0.00024283,5]
[334522929,1723173074390,-2544.44,0.00024283,5]
[334522930,1723173074403,-587.54,0.00024283,5]
[334522931,1723173074414,-1933.72,0.00024283,5]
[334522932,1723173074424,-1040.73,0.00024283,5]
[334522933,1723173074435,-1040.73,0.00024283,5]
[334522934,1723173074444,-500.0,0.00024283,5]
[334522935,1723173074454,-2360.3,0.00024283,5]
[334522936,1723173074465,-500.0,0.00024283,5]
[334522937,1723173074476,-500.0,0.00024283,5]
[334522938,1723173074487,-500.0,0.00024283,5]
[334522939,1723173074498,-500.0,0.00024283,5]
[334522940,1723173074508,-634.45,0.00024283,5]
[334522941,1723173074518,-500.0,0.00024283,5]
[334522942,1723173074528,-955.44,0.00024283,5]
[334522943,1723173074539,-553.49,0.00024283,5]
[334522944,1723173074549,-500.0,0.00024283,5]
[334522945,1723173074559,-500.0,0.00024283,5]
[334522946,1723173074568,-849.58,0.00024283,5]
[334522947,1723173074578,-500.0,0.00024283,5]
[334522948,1723173074588,-598.24,0.00024283,5]
[334522949,1723173074716,-500.0,0.00024283,5]
[334522950,1723173074727,-2539.06,0.00024283,5]
[334522951,1723173074738,-500.0,0.00024283,5]
[334522952,1723173074750,-500.0,0.00024283,5]
[334522953,1723173074759,-304.73335357,0.00024283,5]
[334522954,1723173074768,-762.01,0.00024283,5]
[334522955,1723173074778,-1491.08,0.00024283,5]
[334522956,1723173074787,-729.35,0.00024283,5]
[334522957,1723173074797,-500.0,0.00024283,5]
[334522958,1723173074807,-1747.68,0.00024283,5]
[334522959,1723173074816,-500.0,0.00024283,5]
[334522960,1723173074826,-1029.94,0.00024283,5]
[334522961,1723173074835,-728.07,0.00024283,5]
[334522962,1723173074844,-2164.79,0.00024283,5]
[334522963,1723173074854,-959.94,0.00024283,5]
[334522964,1723173074863,-3315.04,0.00024283,5]
[334522965,1723173074873,-500.0,0.00024283,5]
[334522966,1723173074883,-870.98,0.00024283,5]
[334522967,1723173074893,-2760.09,0.00024283,5]
[334522968,1723173074902,-1735.62,0.00024283,5]
[334522969,1723173074912,-2073.19,0.00024283,5]
[334522970,1723173074921,-796.36,0.00024283,5]
[334522971,1723173074931,-2598.71,0.00024283,5]
[334522972,1723173074941,-4419.52,0.00024283,5]
[334522973,1723173074950,-507.23,0.00024283,5]
[334522974,1723173074959,-500.0,0.00024283,5]
[334522975,1723173074969,-504.04,0.00024283,5]
[334522976,1723173074979,-1623.9,0.00024283,5]
[334522977,1723173074988,-500.0,0.00024283,5]
[334522978,1723173074997,-500.0,0.00024283,5]
[334522979,1723173075006,-500.0,0.00024283,5]
[334522980,1723173075016,-500.0,0.00024283,5]
[334522981,1723173075026,-3082.71,0.00024283,5]
[334522982,1723173075035,-500.0,0.00024283,5]
[334522983,1723173075045,-500.0,0.00024283,5]
[334522984,1723173075054,-1742.45,0.00024283,5]
[334522985,1723173075064,-754.59,0.00024283,5]
[334522986,1723173075073,-1500.41,0.00024283,5]
[334522987,1723173075083,-931.62,0.00024283,5]
[334522988,1723173075093,-500.0,0.00024283,5]
[334522989,1723173075103,-1366.36,0.00024283,5]
[334522990,1723173075113,-7078.41,0.00024283,5]
[334522991,1723173075126,-577.95,0.00024283,5]
[334522992,1723173075136,-500.0,0.00024283,5]
[334522993,1723173075145,-1421.12,0.00024283,5]
[334522994,1723173075155,-756.55,0.00024283,5]
[334522995,1723173075167,-605.71,0.00024283,5]
[334522996,1723173075178,-12292.82,0.00024283,5]
[334522997,1723173075187,-500.0,0.00024283,5]
[334522998,1723173075198,-264.25335886,0.00024283,5]
[334522999,1723173075208,-500.0,0.00024283,5]
[334523000,1723173075218,-500.0,0.00024283,5]
[334523001,1723173075228,-500.0,0.00024283,5]
[334523002,1723173075238,-500.0,0.00024283,5]
[334523003,1723173075247,-500.0,0.00024283,5]
[334523004,1723173075257,-569.12,0.00024283,5]
[334523005,1723173075266,-511.96,0.00024283,5]
[334523006,1723173075276,-511.96,0.00024283,5]
[334523007,1723173075285,-500.0,0.00024283,5]
[334523008,1723173075296,-500.0,0.00024283,5]
[334523009,1723173075306,-912.55,0.00024283,5]
[334523010,1723173075316,-867.19,0.00024283,5]
[334523011,1723173075326,-548.86,0.00024283,5]
[334523012,1723173075335,-3027.54,0.00024283,5]
[334523013,1723173075345,-1185.32,0.00024283,5]
[334523014,1723173075355,-1185.32,0.00024283,5]
[334523015,1723173075365,-1185.32,0.00024283,5]
[334523016,1723173075374,-1185.32,0.00024283,5]
[334523017,1723173075384,-1185.32,0.00024283,5]
[334523018,1723173075394,-1185.52336422,0.00024283,5]
[334523019,1723173075403,-1115.98,0.00024283,5]
[334523020,1723173075413,-1195.6,0.00024283,5]
[334523021,1723173075423,-1195.6,0.00024283,5]
[334523022,1723173075432,-2152.11,0.00024283,5]
[334523023,1723173075442,-500.0,0.00024283,5]
[334523024,1723173075451,-1093.44,0.00024283,5]
[334523025,1723173075460,-665.69,0.00024283,5]
[334523026,1723173075470,-618.25,0.00024283,5]
[334523027,1723173075480,-500.0,0.00024283,5]
[334523028,1723173075489,-500.0,0.00024283,5]
[334523029,1723173075499,-500.0,0.00024283,5]
[334523030,1723173075508,-500.0,0.00024283,5]
[334523031,1723173075518,-500.0,0.00024283,5]
[334523032,1723173075528,-2725.36,0.00024283,5]
[334523033,1723173075537,-730.2,0.00024283,5]
[334523034,1723173075548,-730.2,0.00024283,5]
[334523035,1723173075557,-539.13,0.00024283,5]
[334523036,1723173075566,-684.84,0.00024283,5]
[334523037,1723173075576,-500.0,0.00024283,5]
[334523038,1723173075586,-2207.94,0.00024283,5]
[334523039,1723173075595,-1090.63,0.00024283,5]
[334523040,1723173075605,-2483.96,0.00024283,5]
[334523041,1723173075615,-3472.19,0.00024283,5]
[334523042,1723173075624,-1834.93,0.00024283,5]
[334523043,1723173075633,-2639.38,0.00024283,5]
[334523044,1723173075643,-5863.64,0.00024283,5]
[334523045,1723173075653,-5863.64,0.00024283,5]
[334523046,1723173075663,-5863.64,0.00024283,5]
[334523047,1723173075673,-5863.64,0.00024283,5]
[334523048,1723173075683,-5863.64,0.00024283,5]
[334523049,1723173075693,-5863.85702343,0.00024283,5]
[334523050,1723173075703,-889.01,0.00024283,5]
[334523051,1723173075712,-1558.19,0.00024283,5]
[334523052,1723173075722,-12960.95,0.00024283,5]
[334523053,1723173075732,-1558.19,0.00024283,5]
[334523054,1723173075742,-1558.19,0.00024283,5]
[334523055,1723173075751,-1558.19,0.00024283,5]
[334523056,1723173075761,-500.0,0.00024284,5]
[334523057,1723173075770,-500.0,0.00024284,5]
[334523058,1723173075779,-357.98928033,0.00024284,5]
[334523059,1723173075790,-1225.27,0.00024284,5]
[334523060,1723173075799,-1225.27,0.00024284,5]
[334523061,1723173075809,-1225.27,0.00024284,5]
[334523062,1723173075819,-500.0,0.00024284,5]
[334523063,1723173075828,-500.0,0.00024284,5]
[334523064,1723173075837,-161.73710669,0.00024284,5]
[334523065,1723173075847,-500.0,0.00024284,5]
[334523066,1723173075857,-500.0,0.00024284,5]
[334523067,1723173075866,-500.0,0.00024284,5]
[334523068,1723173075876,-500.0,0.00024284,5]
[334523069,1723173075885,-500.0,0.00024284,5]
[334523070,1723173075895,-500.0,0.00024284,5]
[334523071,1723173075904,-515.66,0.00024284,5]
[334523072,1723173075914,-515.66,0.00024284,5]
[334523073,1723173075924,-515.66,0.00024284,5]
[334523074,1723173075940,-500.0,0.00024284,5]
[334523075,1723173075950,-500.0,0.00024284,5]
[334523076,1723173075959,-500.0,0.00024284,5]
[334523077,1723173075968,-500.0,0.00024284,5]
[334523078,1723173075977,-500.0,0.00024284,5]
[334523079,1723173075986,-196.08803849,0.00024284,5]
[334523080,1723173075995,-500.0,0.00024284,5]
[334523081,1723173076005,-500.0,0.00024284,5]
[334523082,1723173076014,-500.0,0.00024284,5]
[334523083,1723173076024,-500.0,0.00024284,5]
[334523084,1723173076033,-500.0,0.00024284,5]
[334523085,1723173076043,-500.0,0.00024284,5]
[334523086,1723173076052,-739.59,0.00024284,5]
[334523087,1723173076061,-739.59,0.00024284,5]
[334523088,1723173076071,-739.59,0.00024284,5]
[334523089,1723173076081,-500.0,0.00024284,5]
[334523090,1723173076091,-500.0,0.00024284,5]
[334523091,1723173076100,-500.0,0.00024284,5]
[334523092,1723173076109,-728.64,0.00024284,5]
[334523093,1723173076121,-728.64,0.00024284,5]
[334523094,1723173076133,-728.64,0.00024284,5]
[334523095,1723173076144,-500.0,0.00024284,5]
[334523096,1723173076154,-500.0,0.00024284,5]
[334523097,1723173076166,-380.36548798,0.00024284,5]
[334523098,1723173076178,-1126.08,0.00024284,5]
[334523099,1723173076187,-1126.08,0.00024284,5]
[334523100,1723173076197,-1126.08,0.00024284,5]
[334523101,1723173076207,-538.65,0.00024284,5]
[334523102,1723173076218,-538.65,0.00024284,5]
[334523103,1723173076229,-538.65,0.00024284,5]
[334523104,1723173076241,-500.0,0.00024284,2]
[334523105,1723173076251,-500.0,0.00024284,2]
[334523106,1723173076262,-500.0,0.00024284,5]
[334523107,1723173076273,-414.76,0.00024284,5]
[334523108,1723173076282,-1208.41,0.00024284,5]
[334523109,1723173076291,-1208.41,0.00024284,5]
[334523110,1723173076300,-1208.41,0.00024284,5]
[334523111,1723173076311,-500.0,0.00024284,5]
[334523112,1723173076322,-500.0,0.00024284,5]
[334523113,1723173076332,-500.0,0.00024284,5]
[334523114,1723173076343,-500.0,0.00024284,5]
[334523115,1723173076354,-485.74536975,0.00024284,5]
[334523116,1723173076365,-566.76,0.00024284,5]
[334523117,1723173076375,-566.76,0.00024284,5]
[334523118,1723173076386,-566.76,0.00024284,5]
[334523119,1723173076397,-500.0,0.00024284,5]
[334523120,1723173076408,-500.0,0.00024284,5]
[334523121,1723173076419,-500.0,0.00024284,5]
[334523122,1723173076430,-500.0,0.00024284,5]
[334523123,1723173076439,-500.0,0.00024284,5]
[334523124,1723173076449,-500.0,0.00024284,5]
[334523125,1723173076460,-500.0,0.00024284,5]
[334523126,1723173076470,-500.0,0.00024284,5]
[334523127,1723173076481,-500.0,0.00024284,5]
[334523128,1723173076492,-1083.97,0.00024284,5]
[334523129,1723173076613,-1083.97,0.00024284,5]
[334523130,1723173076623,-1083.97,0.00024284,5]
[334523131,1723173076632,-500.0,0.00024284,5]
[334523132,1723173076642,-500.0,0.00024284,5]
[334523133,1723173076651,-500.0,0.00024284,5]
[334523134,1723173076661,-500.0,0.00024284,5]
[334523135,1723173076670,-500.0,0.00024284,5]
[334523136,1723173076681,-500.0,0.00024284,5]
[334523137,1723173076690,-500.0,0.00024284,5]
[334523138,1723173076699,-500.0,0.00024284,5]
[334523139,1723173076709,-500.0,0.00024284,5]
[334523140,1723173076718,-500.0,0.00024284,5]
[334523141,1723173076727,-500.0,0.00024284,5]
[334523142,1723173076736,-500.0,0.00024284,5]
[334523143,1723173076746,-500.0,0.00024284,5]
[334523144,1723173076755,-500.0,0.00024284,5]
[334523145,1723173076766,-500.0,0.00024284,5]
[334523146,1723173076775,-500.0,0.00024284,5]
[334523147,1723173076784,-500.0,0.00024284,5]
[334523148,1723173076794,-500.0,0.00024284,5]
[334523149,1723173076804,-500.0,0.00024284,5]
[334523150,1723173076814,-500.0,0.00024284,5]
[334523151,1723173076823,-500.0,0.00024284,5]
[334523152,1723173076832,-620.82151776,0.00024284,5]
[334523153,1723173076842,-500.0,0.00024284,5]
[334523154,1723173076851,-500.0,0.00024284,5]
[334523155,1723173076861,-500.0,0.00024284,5]
[334523156,1723173076871,-633.29,0.00024284,5]
[334523157,1723173076880,-633.29,0.00024284,5]
[334523158,1723173076890,-633.29,0.00024284,5]
[334523159,1723173076899,-500.0,0.00024284,5]
[334523160,1723173076908,-500.0,0.00024284,5]
[334523161,1723173076918,-500.0,0.00024284,5]
[334523162,1723173076929,-500.0,0.00024284,5]
[334523163,1723173076939,-500.0,0.00024284,5]
[334523164,1723173076948,-500.0,0.00024284,5]
[334523165,1723173076958,-717.63,0.00024284,5]
[334523166,1723173076967,-717.63,0.00024284,5]
[334523167,1723173076981,-703.95,0.00024284,5]
[334523168,1723173076991,-717.63,0.00024284,5]
[334523169,1723173077000,-703.95,0.00024284,5]
[334523170,1723173077009,-703.95,0.00024284,5]
[334523171,1723173077018,-500.0,0.00024284,5]
[334523172,1723173077028,-500.0,0.00024284,5]
[334523173,1723173077038,-589.38,0.00024284,5]
[334523174,1723173077048,-589.38,0.00024284,5]
[334523175,1723173077058,-589.38,0.00024284,5]
[334523176,1723173077067,-500.0,0.00024284,5]
[334523177,1723173077076,-500.0,0.00024284,5]
[334523178,1723173077085,-500.0,0.00024284,5]
[334523179,1723173077095,-500.0,0.00024284,5]
[334523180,1723173077105,-500.0,0.00024284,5]
[334523181,1723173077114,-365.8231751,0.00024284,5]
[334523182,1723173077127,-500.0,0.00024284,5]
[334523183,1723173077136,-500.0,0.00024284,5]
[334523184,1723173077146,-500.0,0.00024284,5]
[334523185,1723173077155,-500.0,0.00024284,5]
[334523186,1723173077165,-500.0,0.00024284,5]
[334523187,1723173077175,-500.0,0.00024284,5]
[334523188,1723173077186,-500.0,0.00024284,5]
[334523189,1723173077195,-500.0,0.00024284,5]
[334523190,1723173077207,-500.0,0.00024284,5]
[334523191,1723173077217,-500.0,0.00024284,5]
[334523192,1723173077226,-520.63032638,0.00024284,5]
[334523193,1723173077235,-500.0,0.00024284,5]
[334523194,1723173077244,-500.0,0.00024284,5]
[334523195,1723173077253,-500.0,0.00024284,5]
[334523196,1723173077262,-1844.11,0.00024284,5]
[334523197,1723173077272,-1844.11,0.00024284,5]
[334523198,1723173077281,-1844.11,0.00024284,5]
[334523199,1723173077291,-1844.11,0.00024284,5]
[334523200,1723173077300,-1844.11,0.00024284,5]
[334523201,1723173077310,-500.0,0.00024284,5]
[334523202,1723173077319,-500.0,0.00024284,5]
[334523203,1723173077331,-500.0,0.00024284,5]
[334523204,1723173077340,-1719.42,0.00024284,5]
[334523205,1723173077349,-575.17,0.00024284,5]
[334523206,1723173077359,-1719.42,0.00024284,5]
[334523207,1723173077368,-575.17,0.00024284,5]
[334523208,1723173077377,-1719.42,0.00024284,5]
[334523209,1723173077386,-1719.42,0.00024284,5]
[334523210,1723173077395,-575.17,0.00024284,5]
[334523211,1723173077405,-1719.42,0.00024284,5]
[334523212,1723173077415,-1285.45,0.00024284,5]
[334523213,1723173077428,-1285.45,0.00024284,5]
[334523214,1723173077450,-1285.45,0.00024284,5]
[334523215,1723173077466,-1285.45,0.00024284,5]
[334523216,1723173077486,-833.58,0.00024284,5]
[334523217,1723173077507,-1285.45,0.00024284,5]
[334523218,1723173077525,-833.58,0.00024284,5]
[334523219,1723173077544,-500.0,0.00024284,5]
[334523220,1723173077558,-596.17253957,0.00024284,5]
[334523221,1723173077576,-500.0,0.00024284,5]
[334523222,1723173077595,-500.0,0.00024284,5]
[334523223,1723173077611,-512.33240974,0.00024284,5]
[334523224,1723173077625,-1221.95,0.00024284,5]
[334523225,1723173077645,-1221.95,0.00024284,5]
[334523226,1723173077663,-1221.95,0.00024284,5]
[334523227,1723173077679,-1221.95,0.00024284,5]
[334523228,1723173077695,-1221.95,0.00024284,5]
[334523229,1723173077712,-500.0,0.00024284,5]
[334523230,1723173077729,-500.0,0.00024284,5]
[334523231,1723173077745,-500.0,0.00024284,5]
[334523232,1723173077761,-582.46,0.00024284,5]
[334523233,1723173077776,-582.46,0.00024284,5]
[334523234,1723173077793,-582.46,0.00024284,5]
[334523235,1723173077808,-582.46,0.00024284,5]
[334523236,1723173077824,-582.46,0.00024284,5]
[334523237,1723173077839,-593.74,0.00024284,5]
[334523238,1723173077855,-593.74,0.00024284,5]
[334523239,1723173077872,-593.74,0.00024284,5]
[334523240,1723173077888,-838.22,0.00024284,5]
[334523241,1723173077904,-838.22,0.00024284,5]
[334523242,1723173077920,-607.46,0.00024284,5]
[334523243,1723173077939,-607.46,0.00024284,5]
[334523244,1723173077954,-607.46,0.00024284,5]
[334523245,1723173077970,-607.46,0.00024284,5]
[334523246,1723173077987,-607.46,0.00024284,5]
[334523247,1723173078004,-843.29,0.00024284,5]
[334523248,1723173078020,-843.29,0.00024284,5]
[334523249,1723173078035,-843.29,0.00024284,5]
[334523250,1723173078050,-1289.5,0.00024284,5]
[334523251,1723173078065,-1289.5,0.00024284,5]
[334523252,1723173078079,-1289.5,0.00024284,5]
[334523253,1723173078095,-1289.5,0.00024284,5]
[334523254,1723173078111,-1289.5,0.00024284,5]
[334523255,1723173078130,-500.0,0.00024284,5]
[334523256,1723173078145,-180.52950788,0.00024284,5]
[334523257,1723173078159,-500.0,0.00024284,5]
[334523258,1723173078179,-500.0,0.00024284,5]
[334523259,1723173078195,-500.0,0.00024284,5]
[334523260,1723173078211,-500.0,0.00024284,5]
[334523261,1723173078227,-267.4309881,0.00024284,5]
[334523262,1723173078244,-500.0,0.00024284,5]
[334523263,1723173078259,-500.0,0.00024284,5]
[334523264,1723173078275,-500.0,0.00024284,5]
[334523265,1723173078291,-500.0,0.00024284,5]
[334523266,1723173078308,-445.20950355,0.00024284,5]
[334523267,1723173078324,-500.0,0.00024284,5]
[334523268,1723173078339,-500.0,0.00024284,5]
[334523269,1723173078355,-174.4933238,0.00024284,5]
[334523270,1723173078372,-209.56304715,0.00024284,5]
[334523271,1723173078388,-1419.24,0.00024284,5]
[334523272,1723173078403,-1419.24,0.00024284,5]
[334523273,1723173078419,-500.0,0.00024284,5]
[334523274,1723173078435,-1419.24,0.00024284,5]
[334523275,1723173078450,-500.0,0.00024284,5]
[334523276,1723173078465,-1419.24,0.00024284,5]
[334523277,1723173078479,-500.0,0.00024284,5]
[334523278,1723173078494,-1419.24,0.00024284,5]
[334523279,1723173078510,-500.0,0.00024284,5]
[334523280,1723173078527,-500.0,0.00024284,5]
[334523281,1723173078544,-500.0,0.00024284,5]
[334523282,1723173078554,-500.0,0.00024284,5]
[334523283,1723173078564,-500.0,0.00024284,5]
[334523284,1723173078574,-500.0,0.00024284,5]
[334523285,1723173078584,-500.0,0.00024284,5]
[334523286,1723173078593,-500.0,0.00024284,5]
[334523287,1723173078604,-500.0,0.00024284,5]
[334523288,1723173078614,-798.23,0.00024284,5]
[334523289,1723173078624,-798.23,0.00024284,5]
[334523290,1723173078634,-798.23,0.00024284,5]
[334523291,1723173078644,-798.23,0.00024284,5]
[334523292,1723173078655,-838.25,0.00024284,5]
[334523293,1723173078665,-798.23,0.00024284,5]
[334523294,1723173078676,-838.25,0.00024284,5]
[334523295,1723173078687,-838.25,0.00024284,5]
[334523296,1723173078968,-500.0,0.00024284,5]
[334523297,1723173078993,-327.64161934,0.00024284,5]
[334523298,1723173079004,-500.0,0.00024284,5]
[334523299,1723173079014,-500.0,0.00024284,5]
[334523300,1723173079025,-634.14303686,0.00024284,5]
[334523301,1723173079035,-713.13,0.00024284,5]
[334523302,1723173079045,-713.13,0.00024284,5]
[334523303,1723173079055,-500.0,0.00024284,5]
[334523304,1723173079064,-500.0,0.00024284,5]
[334523305,1723173079074,-500.0,0.00024284,5]
[334523306,1723173079083,-1285.69,0.00024284,5]
[334523307,1723173079093,-1285.69,0.00024284,5]
[334523308,1723173079103,-500.0,0.00024284,5]
[334523309,1723173079112,-500.0,0.00024284,5]
[334523310,1723173079123,-500.0,0.00024284,5]
[334523311,1723173079134,-500.0,0.00024284,5]
[334523312,1723173079143,-500.0,0.00024284,5]
[334523313,1723173079152,-753.85,0.00024284,5]
[334523314,1723173079161,-753.85,0.00024284,5]
[334523315,1723173079171,-753.85,0.00024284,5]
[334523316,1723173079180,-500.0,0.00024284,5]
[334523317,1723173079190,-500.0,0.00024284,5]
[334523318,1723173079200,-171.40144016,0.00024284,5]
[334523319,1723173079209,-897.02,0.00024284,5]
[334523320,1723173079219,-897.02,0.00024284,5]
[334523321,1723173079228,-897.02,0.00024284,5]
[334523322,1723173079237,-897.02,0.00024284,5]
[334523323,1723173079248,-500.0,0.00024284,5]
[334523324,1723173079257,-897.02,0.00024284,5]
[334523325,1723173079267,-500.0,0.00024284,5]
[334523326,1723173079276,-307.48388266,0.00024284,5]
[334523327,1723173079286,-500.0,0.00024284,5]
[334523328,1723173079296,-500.0,0.00024284,5]
[334523329,1723173079306,-2402.71,0.00024284,5]
[334523330,1723173079315,-701.47,0.00024284,5]
[334523331,1723173079324,-2402.71,0.00024284,5]
[334523332,1723173079334,-701.47,0.00024284,5]
[334523333,1723173079343,-2402.71,0.00024284,5]
[334523334,1723173079352,-701.47,0.00024284,5]
[334523335,1723173079362,-2402.71,0.00024284,5]
[334523336,1723173079371,-2402.71,0.00024284,5]
[334523337,1723173079381,-500.0,0.00024284,5]
[334523338,1723173079391,-880.65,0.00024284,5]
[334523339,1723173079400,-500.0,0.00024284,5]
[334523340,1723173079409,-880.65,0.00024284,5]
[334523341,1723173079419,-500.0,0.00024284,5]
[334523342,1723173079428,-880.65,0.00024284,5]
[334523343,1723173079445,-707.7,0.00024284,5]
[334523344,1723173079455,-707.7,0.00024284,5]
[334523345,1723173079464,-2087.65,0.00024284,5]
[334523346,1723173079473,-2087.65,0.00024284,5]
[334523347,1723173079483,-2087.65,0.00024284,5]
[334523348,1723173079492,-2087.65,0.00024284,5]
[334523349,1723173079502,-2087.65,0.00024284,5]
[334523350,1723173079512,-500.0,0.00024284,5]
[334523351,1723173079521,-958.51,0.00024284,5]
[334523352,1723173079531,-500.0,0.00024284,5]
[334523353,1723173079540,-958.51,0.00024284,5]
[334523354,1723173079550,-500.0,0.00024284,5]
[334523355,1723173079559,-958.51,0.00024284,5]
[334523356,1723173079569,-1446.93,0.00024284,5]
[334523357,1723173079578,-1446.93,0.00024284,5]
[334523358,1723173079587,-1446.93,0.00024284,5]
[334523359,1723173079597,-1446.93,0.00024284,5]
[334523360,1723173079607,-1446.93,0.00024284,5]
[334523361,1723173079616,-1790.02,0.00024284,5]
[334523362,1723173079625,-1790.02,0.00024284,5]
[334523363,1723173079635,-1790.02,0.00024284,5]
[334523364,1723173079644,-637.63,0.00024284,5]
[334523365,1723173079653,-637.63,0.00024284,5]
[334523366,1723173079662,-637.63,0.00024284,5]
[334523367,1723173079672,-3161.79,0.00024284,5]
[334523368,1723173079682,-3161.79,0.00024284,5]
[334523369,1723173079691,-3161.79,0.00024284,5]
[334523370,1723173079700,-3161.79,0.00024284,5]
[334523371,1723173079710,-3161.79,0.00024284,5]
[334523372,1723173079720,-723.07,0.00024284,5]
[334523373,1723173079730,-723.07,0.00024284,5]
[334523374,1723173079739,-723.07,0.00024284,5]
[334523375,1723173079749,-560.88,0.00024284,5]
[334523376,1723173079758,-500.0,0.00024284,5]
[334523377,1723173079768,-560.88,0.00024284,5]
[334523378,1723173079777,-560.88,0.00024284,5]
[334523379,1723173079786,-547.19489424,0.00024284,5]
[334523380,1723173079796,-2701.2,0.00024284,5]
[334523381,1723173079805,-2701.2,0.00024284,5]
[334523382,1723173079815,-2701.2,0.00024284,5]
[334523383,1723173079824,-2701.2,0.00024284,5]
[334523384,1723173079834,-535.52,0.00024284,5]
[334523385,1723173079844,-2701.2,0.00024284,5]
[334523386,1723173079854,-535.52,0.00024284,5]
[334523387,1723173079863,-535.52,0.00024284,5]
[334523388,1723173079873,-734.02,0.00024284,5]
[334523389,1723173079883,-734.02,0.00024284,5]
[334523390,1723173079892,-1290.79,0.00024284,5]
[334523391,1723173079902,-1290.79,0.00024284,5]
[334523392,1723173079912,-1290.79,0.00024284,5]
[334523393,1723173079921,-816.35,0.00024284,5]
[334523394,1723173079934,-816.35,0.00024284,5]
[334523395,1723173079950,-1131.27,0.00024284,5]
[334523396,1723173079960,-816.35,0.00024284,5]
[334523397,1723173079969,-1131.27,0.00024284,5]
[334523398,1723173079978,-1131.27,0.00024284,5]
[334523399,1723173079987,-500.0,0.00024284,5]
[334523400,1723173079997,-500.0,0.00024284,5]
[334523401,1723173080008,-500.0,0.00024284,5]
[334523402,1723173080017,-403.63091207,0.00024284,5]
[334523403,1723173080027,-336.01323281,0.00024284,5]
[334523404,1723173080036,-500.0,0.00024284,5]
[334523405,1723173080046,-500.0,0.00024284,5]
[334523406,1723173080056,-500.0,0.00024284,5]